bitfinex-derivatives/quotes_SOLF0:USTF0_20251006
["timestamp","ask_amount","ask_price","bid_price","bid_amount"]
[1759755073634,3.8446,234.03,233.97,7.85]
[1759755074230,3.8449,234.01,233.97,7.85]
[1759755075039,3.8249,234.01,233.97,7.85]
[1759755075537,3.8445,234.03,233.97,7.85]
[1759755076738,107.5045,234.03,233.97,7.85]
[1759755077135,3.8448,234.02,233.97,7.85]
[1759755077541,3.8448,234.02,233.91,3.8463]
[1759755077741,3.8448,234.02,233.92,7.85]
[1759755078834,108.5248,234.02,233.92,7.85]
[1759755079230,3.8449,234.01,233.92,7.85]
[1759755079434,104.68,234.02,233.92,7.85]
[1759755080542,3.8454,233.98,233.92,7.85]
[1759755082441,3.8449,234.01,233.92,7.85]
[1759755083344,3.8451,234.0,233.92,7.85]
[1759755083934,3.8453,233.99,233.92,7.85]
[1759755084144,104.66,234.02,233.92,7.85]
[1759755084534,107.06737102,234.02,233.88,3.8468]
[1759755084737,59.8086,234.01,233.89,7.83]
[1759755085536,3.8458,233.96,233.89,7.83]
[1759755089747,107.06737102,234.02,233.89,7.83]
[1759755090442,107.06737102,234.02,233.9,7.83]
[1759755090443,3.8454,233.98,233.9,7.83]
[1759755091448,12.50225956,234.08,233.92,7.83]
[1759755091644,370.8891,234.09,233.94,7.83]
[1759755091645,311.1,234.09,233.94,7.83]
[1759755091953,104.66,234.08,233.95,7.83]
[1759755092244,104.66,234.08,233.94,4.73732949]
[1759755092245,108.5038,234.08,233.99,7.83]
[1759755092638,104.66,234.08,233.99,7.83]
[1759755093943,104.66,234.08,233.96,2.40737102]
[1759755093944,3.8444,234.04,233.96,2.40737102]
[1759755094142,3.8444,234.04,233.97,7.83]
[1759755096749,3.8439,234.07,233.98,7.87]
[1759755097049,3.8439,234.07,234.0,1.54218254]
[1759755097248,3.8439,234.07,234.01,7.87]
[1759755097443,108.5036,234.08,234.01,7.87]
[1759755097640,311.1,234.09,234.01,7.87]
[1759755098657,3.8436,234.08,234.01,11.7146]
[1759755098953,3.8436,234.08,234.01,7.87]
[1759755099757,311.1,234.09,234.01,7.87]
[1759755100554,311.1,234.09,234.01,11.42970193]
[1759755101655,3.8443,234.05,234.01,11.42970193]
[1759755103152,3.8438,234.07,234.01,11.42970193]
[1759755103858,3.8435,234.09,234.01,11.42970193]
[1759755104055,3.8435,234.09,234.02,3.55970193]
[1759755105362,3.8435,234.09,234.02,3.56317736]
[1759755107158,101.42,234.08,234.02,7.40777736]
[1759755107358,101.42,234.08,234.03,11.43317736]
[1759755107664,3.8435,234.09,234.03,11.43317736]
[1759755107864,47.52,234.08,234.03,3.56317736]
[1759755108061,47.52,234.08,234.04,7.86]
[1759755108559,7.6825,234.23,234.04,7.86]
[1759755108758,1.54218254,234.16,234.06,7.86]
[1759755108960,1.54218254,234.16,234.06,3.56317736]
[1759755109163,1.54218254,234.16,234.07,7.86]
[1759755110069,3.8426,234.15,234.07,7.86]
[1759755110967,3.8428,234.14,234.07,7.86]
[1759755111564,1.54218254,234.13,234.06,3.56317736]
[1759755111768,1.54218254,234.13,234.05,7.86]
[1759755112270,1.54218254,234.13,234.05,11.42317736]
[1759755112670,3.843,234.12,234.05,11.42317736]
[1759755112970,3.843,234.12,234.05,11.41705492]
[1759755113565,3.8433,234.11,234.05,11.41705492]
[1759755113761,3.8433,234.11,234.05,7.86]
[1759755117776,3.8429,234.13,234.05,12.95923746]
[1759755118078,1.54218254,234.14,234.06,7.86]
[1759755119577,3.8431,234.12,234.06,7.86]
[1759755121378,5.38488254,234.14,234.06,7.86]
[1759755121578,104.6,234.13,234.06,7.86]
[1759755122579,104.6,234.13,234.07,3.8437]
[1759755122779,104.6,234.13,234.05,5.09923746]
[1759755122780,104.6,234.13,234.06,7.86]
[1759755123479,104.6,234.13,234.04,3.55705492]
[1759755124285,108.4429,234.13,234.05,7.86]
[1759755124478,59.7459,234.26,234.05,12.95923746]
[1759755124479,104.6,234.15,234.05,12.95923746]
[1759755124674,1.54218254,234.18,234.06,3.55705492]
[1759755124878,3.8426,234.15,234.07,9.40218254]
[1759755125383,1.54218254,234.15,234.07,7.86]
[1759755126582,3.8428,234.13,234.07,7.86]
[1759755130183,3.8431,234.12,234.07,7.86]
[1759755131888,3.8431,234.12,234.05,3.55705492]
[1759755132087,3.8427,234.14,234.06,7.86]
[1759755132286,3.8427,234.14,234.06,11.41705492]
[1759755132587,3.8427,234.14,234.07,7.86]
[1759755133184,3.8427,234.14,234.07,11.41705492]
[1759755133384,3.8427,234.14,234.08,7.86]
[1759755135387,3.8427,234.14,234.08,11.41705492]
[1759755135689,1.54218254,234.15,234.08,3.55705492]
[1759755136685,311.06,234.25,234.1,5.09923746]
[1759755136891,1.54218254,234.22,234.13,3.55705492]
[1759755137091,1.54218254,234.22,234.14,7.86]
[1759755138590,3.8415,234.21,234.14,7.86]
[1759755138792,1.54218254,234.19,234.12,3.55705492]
[1759755139093,1.54218254,234.19,234.11,10.79705492]
[1759755139392,59.7525,234.23,234.12,7.24]
[1759755139592,1.54218254,234.18,234.12,7.24]
[1759755139789,104.58,234.17,234.12,7.24]
[1759755140395,104.58,234.17,234.11,3.55705492]
[1759755140782,104.58,234.16,234.12,7.24]
[1759755141281,104.58,234.16,234.11,3.55705492]
[1759755142083,104.56,234.15,234.11,10.79705492]
[1759755142287,5.38428254,234.18,234.12,7.24]
[1759755142496,104.56,234.17,234.13,7.24]
[1759755142996,104.56,234.16,234.12,3.55705492]
[1759755143193,104.56,234.16,234.11,3.55705492]
[1759755143390,104.56,234.16,234.12,7.24]
[1759755143697,104.56,234.16,234.11,3.55705492]
[1759755144394,104.56,234.16,234.12,7.24]
[1759755145598,108.4024,234.16,234.12,7.24]
[1759755146397,1.54218254,234.15,234.1,3.55705492]
[1759755146596,1.54218254,234.15,234.09,3.55705492]
[1759755147202,1.54218254,234.15,234.08,10.79705492]
[1759755147700,3.843,234.13,234.08,10.79705492]
[1759755147897,1.54218254,234.15,234.08,10.79705492]
[1759755148093,104.56,234.14,234.09,10.79705492]
[1759755148293,104.56,234.13,234.1,7.24]
[1759755148495,104.56,234.13,234.09,3.55705492]
[1759755148692,104.56,234.12,234.1,7.24]
[1759755148891,104.56,234.11,234.1,7.24]
[1759755149199,104.56,234.11,234.1,10.79705492]
[1759755150500,104.56,234.11,234.1,7.24]
[1759755150989,104.56,234.11,234.09,3.55705492]
[1759755151798,108.4031,234.11,234.09,3.55705492]
[1759755153701,108.4031,234.11,234.08,3.55705492]
[1759755156199,3.8429,234.13,234.08,3.55705492]
[1759755156402,104.56,234.12,234.08,3.55705492]
[1759755156703,104.56,234.11,234.08,3.55705492]
[1759755157613,104.56,234.11,234.06,3.55705492]
[1759755158012,104.56,234.11,234.06,11.30705492]
[1759755158415,104.56,234.1,234.06,11.30705492]
[1759755159516,104.56,234.1,234.06,3.55705492]
[1759755159712,11.28391297,234.17,234.07,11.30705492]
[1759755160010,104.56,234.16,234.1,11.30705492]
[1759755161211,108.4024,234.16,234.1,11.30705492]
[1759755162312,3.8424,234.16,234.1,11.30705492]
[1759755162513,104.56,234.15,234.11,7.75]
[1759755164112,104.56,234.15,234.11,11.30705492]
[1759755165220,104.56,234.15,234.11,3.55705492]
[1759755165718,104.56,234.15,234.1,11.30705492]
[1759755165918,104.56,234.15,234.11,3.55705492]
[1759755166214,3.8424,234.16,234.11,3.55705492]
[1759755166421,104.56,234.15,234.11,3.55705492]
[1759755166923,104.56,234.14,234.11,3.55705492]
[1759755168017,3.8424,234.16,234.11,3.55705492]
[1759755168222,104.56,234.15,234.11,3.55705492]
[1759755168917,0.42,234.14,234.06,4.77071658]
[1759755169115,62.20343413,234.07,233.9,7.31]
[1759755169322,71.8,234.06,233.93,7.31]
[1759755169620,91.16,234.05,233.93,7.31]
[1759755170419,2.40883413,234.08,233.93,7.31]
[1759755170618,3.8442,234.05,233.93,7.31]
[1759755171126,3.8445,234.03,233.93,7.31]
[1759755171324,105.32,234.02,233.93,7.31]
[1759755172721,3.8448,234.01,233.93,7.31]
[1759755174220,72.44,234.0,233.93,7.31]
[1759755175033,74.84883413,234.0,233.88,7.31]
[1759755176632,3.8455,233.97,233.88,7.31]
[1759755179223,105.22,233.96,233.89,7.31]
[1759755179729,105.2,233.96,233.89,7.31]
[1759755182026,3.8455,233.97,233.89,7.31]
[1759755182331,2.40883413,234.0,233.89,7.31]
[1759755182631,87.02,233.99,233.89,7.31]
[1759755182829,105.14,233.98,233.89,7.31]
[1759755184328,105.14,233.98,233.9,3.8466]
[1759755186432,105.06,233.99,233.91,7.31]
[1759755186827,105.06,233.99,233.91,11.1563]
[1759755187427,3.8448,234.01,233.93,3.846]
[1759755187626,105.08,234.0,233.93,3.846]
[1759755189130,3.8451,233.99,233.9,3.8466]
[1759755189828,105.08,234.0,233.9,3.8466]
[1759755189829,105.08,234.0,233.91,3.8463]
[1759755190134,105.08,234.0,233.9,7.31]
[1759755191028,3.8448,234.01,233.9,7.31]
[1759755191233,3.8444,234.04,233.91,7.31]
[1759755191438,31.6,234.0,233.91,7.31]
[1759755192132,31.6,234.0,233.92,3.8462]
[1759755192337,31.6,234.0,233.91,7.31]
[1759755193632,3.8452,233.99,233.91,3.8464]
[1759755193830,31.6,234.0,233.91,3.8464]
[1759755194235,35.4451,234.0,233.91,3.8464]
[1759755194637,31.6,234.0,233.91,3.8464]
[1759755196444,104.9,233.99,233.91,3.8464]
[1759755198244,59.7865,234.1,233.92,7.24]
[1759755198439,2.40883413,234.08,233.92,7.24]
[1759755198741,3.844,234.06,233.97,3.8453]
[1759755201941,3.8443,234.05,233.97,3.8453]
[1759755203742,104.94,234.04,233.97,3.8453]
[1759755204139,108.7844,234.04,233.95,11.0858]
[1759755206246,108.7844,234.04,233.96,3.8455]
[1759755206846,3.8444,234.04,233.96,3.8455]
[1759755207046,63.64,234.03,233.96,3.8455]
[1759755207248,92.44,234.02,233.96,3.8455]
[1759755207443,92.44,234.02,233.95,7.24]
[1759755208044,92.44,234.02,233.88,7.24]
[1759755208647,2.40883413,234.05,233.88,7.24]
[1759755208840,104.88,234.01,233.88,7.24]
[1759755209243,104.86,234.0,233.89,7.24]
[1759755210739,108.705,234.0,233.92,11.0861]
[1759755211752,104.84,234.0,233.92,7.24]
[1759755211948,3.8447,234.02,233.92,7.24]
[1759755212154,30.08,234.03,233.92,7.24]
[1759755212553,30.08,234.03,233.96,3.8455]
[1759755213053,30.08,234.03,233.95,7.24]
[1759755214151,2.40883413,234.05,233.95,7.24]
[1759755214357,28.78,234.06,233.95,7.24]
[1759755214558,52.1,234.06,233.96,7.31]
[1759755215354,52.1,234.06,234.0,3.8448]
[1759755219547,4.79297537,234.13,233.97,7.31]
[1759755219751,1.5426539,234.1,234.0,7.31]
[1759755219948,1.5426539,234.1,234.02,8.8526539]
[1759755220255,1.5426539,234.1,234.03,3.8443]
[1759755221861,1.5426539,234.1,234.04,3.8442]
[1759755222863,1.5426539,234.1,234.02,8.8526539]
[1759755224164,3.8429,234.13,234.02,8.8526539]
[1759755224362,5.3855539,234.13,234.02,8.8526539]
[1759755225558,5.3855539,234.13,234.04,3.8442]
[1759755225760,5.3855539,234.13,234.04,11.1542]
[1759755226968,80.5255539,234.13,234.04,11.1542]
[1759755227566,5.3855539,234.13,234.04,11.1542]
[1759755228369,3.8431,234.12,234.04,7.31]
[1759755229069,1.5426539,234.13,234.04,7.31]
[1759755230571,1.5426539,234.13,234.05,3.844]
[1759755230870,1.5426539,234.13,234.06,7.36]
[1759755231574,179.2025,234.31,233.99,59.812]
[1759755231575,311.1,234.2,234.12,7.36]
[1759755233276,311.1,234.2,234.12,11.2028]
[1759755233470,415.88,234.2,234.12,11.2028]
[1759755234966,415.88,234.2,234.12,7.36]
[1759755235772,104.74,234.19,234.12,7.36]
[1759755237271,311.1,234.2,234.12,7.36]
[1759755237576,104.68,234.19,234.12,7.36]
[1759755238375,311.1,234.2,234.12,5.3854539]
[1759755238680,104.66,234.19,234.13,7.36]
[1759755238881,1.5426539,234.24,234.13,7.36]
[1759755239179,104.66,234.23,234.13,7.36]
[1759755239388,104.66,234.23,234.13,8.9026539]
[1759755241782,3.8418,234.2,234.13,8.9026539]
[1759755242681,3.842,234.19,234.13,7.36]
[1759755243582,5.3841539,234.21,234.13,7.36]
[1759755250088,3.8418,234.2,234.13,7.36]
[1759755250990,1.5426539,234.21,234.13,7.36]
[1759755252084,5.3836539,234.24,234.13,7.36]
[1759755252391,80.4626539,234.24,234.16,7.36]
[1759755253987,104.6,234.23,234.16,7.36]
[1759755255695,108.4413,234.23,234.16,7.36]
[1759755255993,104.6,234.23,234.16,7.36]
[1759755256196,3.8416,234.21,234.16,7.36]
[1759755256394,1.5426539,234.21,234.11,5.3857539]
[1759755256597,1.5426539,234.21,234.12,7.36]
[1759755257692,3.8418,234.2,234.12,7.36]
[1759755258592,106.1426539,234.21,234.13,7.82]
[1759755259705,106.1426539,234.21,234.13,11.6627]
[1759755259901,109.9842539,234.21,234.13,7.82]
[1759755261100,3.8419,234.19,234.13,7.82]
[1759755264497,106.1426539,234.21,234.13,7.82]
[1759755265505,109.9842539,234.21,234.13,7.82]
[1759755267106,3.8418,234.2,234.13,7.82]
[1759755267306,106.1426539,234.21,234.13,7.82]
[1759755268602,59.7468,234.26,234.13,7.82]
[1759755268804,104.6,234.2,234.13,7.82]
[1759755270115,3.8421,234.18,234.13,7.82]
[1759755270306,104.6,234.2,234.13,7.82]
[1759755271710,3.8423,234.17,234.11,7.82]
[1759755272804,3.8419,234.19,234.11,7.82]
[1759755273206,3.8419,234.19,234.11,11.6631]
[1759755273509,104.6,234.18,234.11,11.6631]
[1759755274209,3.8419,234.19,234.11,11.6631]
[1759755274410,104.6,234.18,234.11,11.6631]
[1759755275403,3.8419,234.19,234.11,11.6631]
[1759755275603,104.6,234.17,234.11,11.6631]
[1759755276112,3.8419,234.19,234.11,11.6631]
[1759755276312,104.6,234.18,234.11,11.6631]
[1759755276513,104.6,234.18,234.12,3.5756055]
[1759755277012,3.8419,234.19,234.12,7.4184055]
[1759755277211,104.6,234.18,234.13,7.29]
[1759755277409,104.6,234.18,234.12,7.4184055]
[1759755277714,104.6,234.18,234.13,7.29]
[1759755278114,104.6,234.18,234.12,14.7084055]
[1759755278816,3.8419,234.19,234.12,14.7084055]
[1759755279018,108.4419,234.19,234.12,14.7084055]
[1759755279317,108.4419,234.19,234.14,7.29]
[1759755279520,104.6,234.19,234.14,7.29]
[1759755279718,3.8416,234.21,234.14,7.29]
[1759755279925,108.4416,234.21,234.14,7.29]
[1759755280723,108.4416,234.21,234.14,11.1325]
[1759755281616,104.6,234.21,234.14,11.1325]
[1759755281817,3.8418,234.2,234.14,11.1325]
[1759755282615,3.8419,234.19,234.14,7.29]
[1759755282917,3.8419,234.19,234.13,3.5756055]
[1759755283520,108.4216,234.21,234.13,10.8656055]
[1759755283909,104.58,234.21,234.14,3.8426]
[1759755285119,3.8419,234.19,234.13,10.8656055]
[1759755285317,3.8419,234.19,234.13,3.5756055]
[1759755286221,3.8419,234.19,234.13,7.4183055]
[1759755287819,3.8419,234.19,234.14,10.8656055]
[1759755288621,3.8419,234.19,234.14,7.29]
[1759755293629,3.8421,234.18,234.13,7.59]
[1759755295128,104.58,234.21,234.13,7.59]
[1759755296630,3.8423,234.17,234.13,7.59]
[1759755298022,3.8423,234.17,234.12,3.5756055]
[1759755298730,3.8423,234.17,234.13,7.59]
[1759755298925,3.8419,234.19,234.13,7.59]
[1759755299926,104.56,234.18,234.12,3.5756055]
[1759755300126,3.8419,234.19,234.13,7.59]
[1759755300433,104.56,234.18,234.12,3.5756055]
[1759755300631,104.56,234.18,234.13,7.59]
[1759755301034,104.56,234.18,234.12,3.5756055]
[1759755301235,104.56,234.18,234.13,7.59]
[1759755302237,104.56,234.18,234.14,7.59]
[1759755303134,2.40745321,234.23,234.14,7.59]
[1759755303435,104.56,234.19,234.13,3.5756055]
[1759755304635,108.402,234.19,234.13,3.5756055]
[1759755305138,104.56,234.19,234.14,3.8427]
[1759755305337,104.56,234.19,234.15,7.59]
[1759755305835,108.4019,234.19,234.14,11.1656055]
[1759755307140,108.4019,234.19,234.15,7.59]
[1759755307436,108.4019,234.19,234.14,3.5756055]
[1759755307638,108.4019,234.19,234.15,7.59]
[1759755313244,104.56,234.19,234.15,7.59]
[1759755313740,3.8414,234.22,234.15,7.59]
[1759755314043,89.0,234.24,234.18,11.1656055]
[1759755314339,89.0,234.24,234.19,3.8417]
[1759755314546,104.54,234.26,234.2,7.59]
[1759755315544,104.54,234.26,234.21,3.8414]
[1759755315744,104.54,234.26,234.22,7.59]
[1759755316145,104.54,234.26,234.17,11.1656055]
[1759755317546,3.841,234.25,234.18,3.8419]
[1759755317745,104.54,234.26,234.17,11.1656055]
[1759755317947,104.54,234.26,234.18,3.5756055]
[1759755318145,104.54,234.26,234.19,7.92]
[1759755318947,104.54,234.26,234.19,11.4956055]
[1759755319152,104.52,234.27,234.2,7.92]
[1759755320652,104.52,234.27,234.2,11.7615]
[1759755326863,104.52,234.27,234.17,7.4176055]
[1759755327057,104.52,234.27,234.17,3.842]
[1759755328264,3.841,234.25,234.18,3.8419]
[1759755328865,6.24795321,234.28,234.19,3.8417]
[1759755329066,104.48,234.25,234.19,3.8417]
[1759755329563,104.48,234.25,234.16,11.4956055]
[1759755329564,104.48,234.25,234.2,3.8415]
[1759755329757,104.48,234.25,234.2,11.7615]
[1759755331268,104.48,234.27,234.22,3.8413]
[1759755331868,104.48,234.27,234.2,3.8417]
[1759755332262,104.48,234.27,234.19,7.92]
[1759755333567,104.48,234.27,234.21,3.8414]
[1759755334469,13.70315123,234.31,234.23,3.8411]
[1759755334766,104.48,234.3,234.23,3.8411]
[1759755335671,104.48,234.3,234.19,7.92]
[1759755335866,104.48,234.3,234.19,11.4956055]
[1759755336671,2.40745321,234.27,234.16,3.5756055]
[1759755336970,2.40745321,234.23,234.14,3.5756055]
[1759755337164,2.40745321,234.23,234.12,7.66]
[1759755337165,3.8418,234.2,234.13,3.5756055]
[1759755337569,104.46,234.22,234.13,3.5756055]
[1759755337961,104.46,234.22,234.12,11.2356055]
[1759755338163,3.8417,234.2,234.12,11.2356055]
[1759755339568,104.46,234.22,234.12,11.2356055]
[1759755339772,3.8419,234.19,234.12,7.66]
[1759755341068,1.54118504,234.18,234.12,7.66]
[1759755343675,1.54118504,234.18,234.1,3.5756055]
[1759755344572,3.8425,234.16,234.09,7.4190055]
[1759755344771,3.8425,234.16,234.1,7.66]
[1759755345573,3.8425,234.16,234.1,11.2356055]
[1759755345775,5.38318504,234.18,234.1,7.66]
[1759755346271,5.38318504,234.18,234.1,11.22892823]
[1759755346473,5.38318504,234.18,234.1,7.66]
[1759755347674,109.84318504,234.18,234.1,7.66]
[1759755348277,109.84318504,234.18,234.1,11.5032]
[1759755348677,109.84318504,234.18,234.1,7.66]
[1759755350177,3.8424,234.16,234.1,7.66]
[1759755350479,1.54118504,234.15,234.1,7.66]
[1759755350975,5.38378504,234.15,234.07,15.06272823]
[1759755351375,5.38378504,234.15,234.07,11.4938]
[1759755352077,3.8428,234.14,234.07,7.65]
[1759755353580,3.843,234.13,234.07,7.65]
[1759755358082,5.38368504,234.15,234.07,11.4937]
[1759755358282,5.38368504,234.15,234.08,7.65]
[1759755360786,5.38368504,234.15,234.08,11.4935]
[1759755360985,5.38368504,234.15,234.09,7.65]
[1759755361186,3.8425,234.15,234.09,7.65]
[1759755361583,3.8433,234.11,234.03,3.56892823]
[1759755361882,1.54118504,234.11,234.03,7.65]
[1759755362081,1.54118504,234.08,234.03,7.65]
[1759755362677,1.54118504,234.08,233.99,3.56892823]
[1759755362884,1.54118504,234.08,234.0,7.65]
[1759755362885,3.8438,234.07,234.0,7.65]
[1759755363579,70.05161231,234.14,234.0,7.65]
[1759755363580,1.54118504,234.05,234.0,7.65]
[1759755363777,1.54118504,234.05,233.97,7.41432823]
[1759755363778,1.54118504,234.05,233.98,7.65]
[1759755365589,3.8443,234.04,233.98,7.65]
[1759755366180,3.8446,234.02,233.98,7.65]
[1759755366585,1.54118504,234.05,233.98,7.65]
[1759755366882,3.8445,234.03,233.98,7.65]
[1759755368286,3.8445,234.03,233.95,7.65]
[1759755368787,3.8448,234.02,233.95,7.65]
[1759755371300,3.845,234.0,233.93,1.54118504]
[1759755371486,3.845,234.0,233.94,7.65]
[1759755371692,64.20118504,234.05,233.94,7.65]
[1759755372092,3.8445,234.03,233.94,7.65]
[1759755374296,3.8445,234.03,233.94,11.4958]
[1759755374493,3.8445,234.03,233.97,7.65]
[1759755374693,64.20118504,234.05,233.97,7.65]
[1759755377104,1.54118504,234.05,233.97,7.65]
[1759755378304,108.3241,234.06,233.97,7.65]
[1759755378801,3.8437,234.08,234.0,7.94]
[1759755378999,104.48,234.07,234.0,7.94]
[1759755380794,108.3239,234.07,234.0,7.94]
[1759755382497,1.54118504,234.06,233.96,1.54118504]
[1759755384404,3.8446,234.03,233.96,1.54118504]
[1759755386010,1.54118504,234.03,233.95,7.94]
[1759755386402,1.54118504,234.02,233.95,7.94]
[1759755386702,3.8449,234.01,233.95,7.94]
[1759755387002,3.8451,234.0,233.95,7.94]
[1759755387905,3.8453,233.99,233.95,7.94]
[1759755388600,323.74569934,234.1,233.92,7.94]
[1759755388805,1.54118504,234.08,233.98,7.94]
[1759755389002,104.46,234.07,233.98,7.94]
[1759755389907,3.8444,234.04,233.98,7.94]
[1759755390413,1.54118504,234.08,233.98,11.7852]
[1759755390706,104.46,234.05,233.98,11.7852]
[1759755391506,104.46,234.05,233.99,7.94]
[1759755392003,311.08,234.1,234.0,7.94]
[1759755392307,104.46,234.09,234.0,9.48118504]
[1759755393302,3.8438,234.08,234.0,9.48118504]
[1759755393910,3.8439,234.07,234.0,7.94]
[1759755394807,3.8439,234.07,234.0,9.48118504]
[1759755396908,3.8441,234.06,234.0,9.48118504]
[1759755399809,104.46,234.08,234.0,9.48118504]
[1759755400103,104.46,234.08,234.04,3.8443]
[1759755400307,104.46,234.08,234.05,7.94]
[1759755400606,104.46,234.08,234.04,7.94]
[1759755400806,10.27431231,234.14,234.07,7.94]
[1759755401103,10.27431231,234.14,234.1,7.94]
[1759755402204,10.27431231,234.14,234.09,1.54118504]
[1759755402405,10.27431231,234.14,234.1,7.94]
[1759755402802,10.27431231,234.14,234.09,1.54118504]
[1759755403108,10.27431231,234.14,234.1,3.8433]
[1759755403303,10.27431231,234.14,234.11,7.94]
[1759755403607,10.27431231,234.14,234.1,3.8433]
[1759755403909,10.27431231,234.14,234.11,7.94]
[1759755404110,10.27431231,234.14,234.1,3.8433]
[1759755404414,10.27431231,234.14,234.11,7.94]
[1759755404708,10.27431231,234.14,234.1,3.8433]
[1759755405110,10.27431231,234.14,234.11,7.94]
[1759755405816,10.27431231,234.14,234.1,3.8433]
[1759755406011,10.27431231,234.14,234.11,7.94]
[1759755406204,10.27431231,234.14,234.1,3.8433]
[1759755406406,10.27431231,234.14,234.11,7.94]
[1759755406613,10.27431231,234.14,234.1,3.8433]
[1759755406810,10.27431231,234.14,234.11,7.94]
[1759755407309,10.27431231,234.14,234.12,7.94]
[1759755407713,10.27431231,234.14,234.07,11.50409611]
[1759755408310,10.27431231,234.14,234.08,7.83]
[1759755409709,10.27431231,234.14,234.1,3.8432]
[1759755410217,10.27431231,234.14,234.11,7.83]
[1759755411110,10.27431231,234.14,234.08,3.8436]
[1759755411317,10.27431231,234.14,234.08,11.6736]
[1759755411517,10.27431231,234.14,234.06,3.8439]
[1759755412717,3.8429,234.13,234.06,3.8439]
[1759755414219,3.8429,234.13,234.07,3.8436]
[1759755414619,10.27431231,234.14,234.07,11.6736]
[1759755416621,10.27431231,234.14,234.08,3.8435]
[1759755419118,2.40792476,234.11,234.02,11.39409611]
[1759755419419,104.38,234.1,234.02,7.83]
[1759755420719,108.2234,234.1,234.03,3.8443]
[1759755421322,108.2234,234.1,234.02,7.83]
[1759755422019,104.38,234.1,234.02,7.83]
[1759755422414,104.38,234.1,234.03,3.56409611]
[1759755422619,104.38,234.1,234.04,7.83]
[1759755423124,104.38,234.1,234.07,7.83]
[1759755423419,104.38,234.1,234.02,7.83]
[1759755423815,104.38,234.1,234.02,11.6745]
[1759755424017,104.38,234.1,234.02,7.83]
[1759755424213,104.38,234.1,233.99,7.83]
[1759755424418,104.38,234.1,233.99,11.39409611]
[1759755425423,3.8439,234.07,233.99,11.39409611]
[1759755426623,3.8439,234.07,234.0,3.8449]
[1759755428427,3.8439,234.07,234.01,3.8447]
[1759755428930,104.38,234.1,234.01,7.83]
[1759755429225,104.38,234.1,234.01,11.39409611]
[1759755429826,104.38,234.1,234.01,7.83]
[1759755430728,3.844,234.06,234.01,7.83]
[1759755431831,3.8436,234.09,234.01,7.83]
[1759755432031,3.8436,234.09,234.01,11.6747]
[1759755433029,3.8438,234.08,234.01,11.6747]
[1759755433230,3.8438,234.08,234.01,15.23879611]
[1759755434426,108.2233,234.1,234.03,3.8444]
[1759755434629,108.2233,234.1,234.04,7.83]
[1759755436730,104.38,234.1,234.04,7.83]
[1759755436935,114.63431231,234.14,234.06,7.83]
[1759755437332,114.63431231,234.14,234.06,11.39409611]
[1759755438435,114.63431231,234.14,234.07,3.56409611]
[1759755440639,114.63431231,234.14,234.05,3.56409611]
[1759755441344,3.8433,234.11,234.05,3.56409611]
[1759755444542,3.8433,234.11,234.06,11.3239]
[1759755445444,3.8433,234.11,234.06,7.48]
[1759755449148,3.8436,234.09,234.04,3.56409611]
[1759755449846,3.8436,234.09,234.04,11.04409611]